[Event "Titled Tuesday Blitz March 15 Early 2022"]
[White "Koellner, Ruben Gideon"]
[Black "Skliarov, Viktor"]
[WhiteFideId "12993093"]
[BlackFideId "14106736"]
[WhiteElo "2477"]
[BlackElo "2229"]
[Result "0-1"]
[Round "11"]
[TimeControl "180+1"]
[Date "2022.03.15"]
[WhiteClock "0:00:12"]
[BlackClock "0:00:32"]

1. d4 {[%clk 0:03:00]}  Nf6 {[%clk 0:02:58]} 2. Bg5 {[%clk 0:03:00]}  Ne4 {[%clk 0:02:58]} 3. Bf4 {[%clk 0:03:00]}  c5 {[%clk 0:02:58]} 4. f3 {[%clk 0:03:00]}  Qa5+ {[%clk 0:02:58]} 5. c3 {[%clk 0:03:00]}  Nf6 {[%clk 0:02:58]} 6. d5 {[%clk 0:03:00]}  Qb6 {[%clk 0:02:56]} 7. Bc1 {[%clk 0:03:00]}  g6 {[%clk 0:02:55]} 8. e4 {[%clk 0:03:01]}  d6 {[%clk 0:02:56]} 9. Nd2 {[%clk 0:03:00]}  Bg7 {[%clk 0:02:56]} 10. Nc4 {[%clk 0:03:00]}  Qc7 {[%clk 0:02:56]} 11. a4 {[%clk 0:03:01]}  O-O {[%clk 0:02:55]} 12. h4 {[%clk 0:03:01]}  Nbd7 {[%clk 0:02:48]} 13. Ne2 {[%clk 0:02:58]}  a6 {[%clk 0:02:48]} 14. a5 {[%clk 0:02:57]}  b5 {[%clk 0:02:47]} 15. axb6 {[%clk 0:02:58]}  Nxb6 {[%clk 0:02:48]} 16. Ng3 {[%clk 0:02:58]}  Nxc4 {[%clk 0:02:40]} 17. Bxc4 {[%clk 0:02:59]}  e6 {[%clk 0:02:41]} 18. h5 {[%clk 0:02:56]}  exd5 {[%clk 0:02:40]} 19. exd5 {[%clk 0:02:57]}  Re8+ {[%clk 0:02:25]} 20. Kf2 {[%clk 0:02:57]}  Nd7 {[%clk 0:02:26]} 21. hxg6 {[%clk 0:02:50]}  fxg6 {[%clk 0:02:17]} 22. Bh6 {[%clk 0:02:48]}  Ne5 {[%clk 0:02:17]} 23. Be2 {[%clk 0:02:48]}  Bh8 {[%clk 0:01:49]} 24. Ra4 {[%clk 0:02:41]}  c4 {[%clk 0:01:43]} 25. Ne4 {[%clk 0:02:25]}  Bf5 {[%clk 0:01:36]} 26. Ng5 {[%clk 0:02:12]}  Bd3 {[%clk 0:01:20]} 27. Kg3 {[%clk 0:01:42]}  Qb6 {[%clk 0:01:00]} 28. Rb4 {[%clk 0:01:28]}  Qe3 {[%clk 0:00:41]} 29. Bxd3 {[%clk 0:00:40]}  Nxd3 {[%clk 0:00:40]} 30. Rxc4 {[%clk 0:00:28]}  Be5+ {[%clk 0:00:33]} 31. Kh4 {[%clk 0:00:12]}  Qf2+ {[%clk 0:00:32]} 0-1


[Site "https://www.chess.com"]

[Event "Titled Tuesday Blitz March 15 Early 2022"]
[White "Marson, Juan Miguel"]
[Black "Koridze, Lile"]
[WhiteFideId "106585"]
[BlackFideId "13612514"]
[WhiteElo "2053"]
[BlackElo "1999"]
[Result "1-0"]
[Round "11"]
[TimeControl "180+1"]
[Date "2022.03.15"]
[WhiteClock "0:00:08"]
[BlackClock "0:00:48"]

1. e4 {[%clk 0:03:00]}  c5 {[%clk 0:02:59]} 2. c3 {[%clk 0:03:00]}  Nf6 {[%clk 0:02:59]} 3. e5 {[%clk 0:02:58]}  Nd5 {[%clk 0:02:59]} 4. d4 {[%clk 0:02:58]}  cxd4 {[%clk 0:02:58]} 5. Nf3 {[%clk 0:02:59]}  Nc6 {[%clk 0:02:58]} 6. cxd4 {[%clk 0:02:58]}  d6 {[%clk 0:02:58]} 7. Bc4 {[%clk 0:02:58]}  Nb6 {[%clk 0:02:59]} 8. Bb5 {[%clk 0:02:57]}  e6 {[%clk 0:02:57]} 9. O-O {[%clk 0:02:43]}  h6 {[%clk 0:02:56]} 10. Nc3 {[%clk 0:02:30]}  a6 {[%clk 0:02:52]} 11. Bxc6+ {[%clk 0:02:24]}  bxc6 {[%clk 0:02:52]} 12. Re1 {[%clk 0:02:25]}  Bb7 {[%clk 0:02:51]} 13. Ne4 {[%clk 0:02:12]}  Nd5 {[%clk 0:02:48]} 14. Nfd2 {[%clk 0:01:46]}  dxe5 {[%clk 0:02:45]} 15. dxe5 {[%clk 0:01:46]}  Be7 {[%clk 0:02:46]} 16. Nc4 {[%clk 0:01:46]}  O-O {[%clk 0:02:45]} 17. Ncd6 {[%clk 0:01:45]}  Qb6 {[%clk 0:02:41]} 18. Be3 {[%clk 0:01:38]}  Nxe3 {[%clk 0:02:40]} 19. Rxe3 {[%clk 0:01:39]}  Kh7 {[%clk 0:02:36]} 20. Rg3 {[%clk 0:01:30]}  Bxd6 {[%clk 0:02:29]} 21. Nxd6 {[%clk 0:01:26]}  Bc8 {[%clk 0:02:27]} 22. Qd3+ {[%clk 0:01:12]}  Kg8 {[%clk 0:02:24]} 23. Rc1 {[%clk 0:01:00]}  Ra7 {[%clk 0:02:24]} 24. Rc4 {[%clk 0:00:57]}  Qxb2 {[%clk 0:02:22]} 25. h3 {[%clk 0:00:46]}  Qxe5 {[%clk 0:02:21]} 26. Re4 {[%clk 0:00:38]}  Qa1+ {[%clk 0:02:17]} 27. Kh2 {[%clk 0:00:39]}  f5 {[%clk 0:02:16]} 28. Rd4 {[%clk 0:00:33]}  e5 {[%clk 0:02:04]} 29. Qc4+ {[%clk 0:00:26]}  Kh7 {[%clk 0:02:03]} 30. Rh4 {[%clk 0:00:23]}  e4 {[%clk 0:01:50]} 31. Nxc8 {[%clk 0:00:18]}  Rxc8 {[%clk 0:01:49]} 32. Qe6 {[%clk 0:00:19]}  Qf6 {[%clk 0:01:41]} 33. Rxh6+ {[%clk 0:00:17]}  Qxh6 {[%clk 0:01:39]} 34. Qxf5+ {[%clk 0:00:17]}  Kh8 {[%clk 0:01:34]} 35. Qxc8+ {[%clk 0:00:17]}  Kh7 {[%clk 0:01:34]} 36. Qf5+ {[%clk 0:00:16]}  Kh8 {[%clk 0:01:34]} 37. Rg6 {[%clk 0:00:10]}  Qh7 {[%clk 0:01:32]} 38. Qc8+ {[%clk 0:00:05]}  Qg8 {[%clk 0:01:32]} 39. Qxc6 {[%clk 0:00:05]}  Qb8+ {[%clk 0:01:30]} 40. g3 {[%clk 0:00:05]}  Rf7 {[%clk 0:01:28]} 41. Kg2 {[%clk 0:00:03]}  Qf8 {[%clk 0:01:24]} 42. Qb6 {[%clk 0:00:03]}  Qa8 {[%clk 0:01:21]} 43. Qe3 {[%clk 0:00:02]}  a5 {[%clk 0:01:17]} 44. Rg5 {[%clk 0:00:02]}  Rf3 {[%clk 0:01:12]} 45. Rh5+ {[%clk 0:00:02]}  Kg8 {[%clk 0:01:12]} 46. Qe2 {[%clk 0:00:03]}  Rf7 {[%clk 0:01:10]} 47. Rh4 {[%clk 0:00:04]}  Re7 {[%clk 0:01:05]} 48. Qe3 {[%clk 0:00:03]}  Qd5 {[%clk 0:01:04]} 49. Rf4 {[%clk 0:00:03]}  Qxa2 {[%clk 0:00:59]} 50. h4 {[%clk 0:00:04]}  Qd5 {[%clk 0:00:59]} 51. h5 {[%clk 0:00:05]}  Qxh5 {[%clk 0:00:58]} 52. Qb3+ {[%clk 0:00:05]}  Kh7 {[%clk 0:00:56]} 53. Rh4 {[%clk 0:00:05]}  Qxh4 {[%clk 0:00:52]} 54. gxh4 {[%clk 0:00:06]}  Re5 {[%clk 0:00:52]} 55. Qc3 {[%clk 0:00:06]}  Re6 {[%clk 0:00:51]} 56. Kg3 {[%clk 0:00:07]}  Kg6 {[%clk 0:00:50]} 57. Qc4 {[%clk 0:00:07]}  Kf7 {[%clk 0:00:50]} 58. Kg4 {[%clk 0:00:07]}  Kf6 {[%clk 0:00:48]} 59. h5 {[%clk 0:00:07]}  Re5 {[%clk 0:00:47]} 60. Qc6+ {[%clk 0:00:07]}  Re6 {[%clk 0:00:48]} 61. Qc3+ {[%clk 0:00:08]}  Re5 {[%clk 0:00:48]} 62. Kf4 {[%clk 0:00:08]} 1-0


[Site "https://www.chess.com"]

[Event "Titled Tuesday Blitz March 15 Early 2022"]
[White "Miszler, Levente"]
[Black "Tsatsalashvili, Keti"]
[WhiteFideId "763276"]
[BlackFideId "13603434"]
[WhiteElo "1966"]
[BlackElo "2246"]
[Result "0-1"]
[Round "11"]
[TimeControl "180+1"]
[Date "2022.03.15"]
[WhiteClock "0:00:01"]
[BlackClock "0:00:09"]

1. Nf3 {[%clk 0:02:54]}  Nf6 {[%clk 0:02:59]} 2. c4 {[%clk 0:02:52]}  e6 {[%clk 0:02:59]} 3. g3 {[%clk 0:02:51]}  d5 {[%clk 0:03:00]} 4. Bg2 {[%clk 0:02:51]}  d4 {[%clk 0:02:58]} 5. O-O {[%clk 0:02:51]}  c5 {[%clk 0:02:55]} 6. e3 {[%clk 0:02:50]}  Nc6 {[%clk 0:02:55]} 7. exd4 {[%clk 0:02:50]}  cxd4 {[%clk 0:02:56]} 8. Re1 {[%clk 0:02:50]}  Bc5 {[%clk 0:02:53]} 9. d3 {[%clk 0:02:49]}  O-O {[%clk 0:02:51]} 10. Nbd2 {[%clk 0:02:46]}  a5 {[%clk 0:02:49]} 11. Rb1 {[%clk 0:02:46]}  h6 {[%clk 0:02:47]} 12. b3 {[%clk 0:02:46]}  Re8 {[%clk 0:02:46]} 13. a3 {[%clk 0:02:46]}  Qd6 {[%clk 0:02:24]} 14. Ne4 {[%clk 0:02:39]}  Nxe4 {[%clk 0:02:23]} 15. Rxe4 {[%clk 0:02:39]}  f5 {[%clk 0:02:16]} 16. Bf4 {[%clk 0:02:28]}  Qd7 {[%clk 0:01:47]} 17. Re1 {[%clk 0:02:17]}  Bxa3 {[%clk 0:01:46]} 18. Ne5 {[%clk 0:02:04]}  Nxe5 {[%clk 0:01:46]} 19. Bxe5 {[%clk 0:02:03]}  Bb4 {[%clk 0:01:46]} 20. Re2 {[%clk 0:01:57]}  Bc3 {[%clk 0:01:36]} 21. Ra2 {[%clk 0:01:54]}  Ra6 {[%clk 0:01:33]} 22. Qh5 {[%clk 0:01:44]}  Qf7 {[%clk 0:01:30]} 23. Qh4 {[%clk 0:01:37]}  b6 {[%clk 0:01:18]} 24. Bc6 {[%clk 0:01:13]}  Bd7 {[%clk 0:01:17]} 25. Bxd7 {[%clk 0:01:06]}  Qxd7 {[%clk 0:01:16]} 26. b4 {[%clk 0:01:04]}  a4 {[%clk 0:01:04]} 27. b5 {[%clk 0:01:03]}  Ra7 {[%clk 0:01:03]} 28. Qf4 {[%clk 0:00:53]}  a3 {[%clk 0:01:00]} 29. h4 {[%clk 0:00:50]}  Bb2 {[%clk 0:00:57]} 30. Qf3 {[%clk 0:00:38]}  Rea8 {[%clk 0:00:37]} 31. Rbxb2 {[%clk 0:00:29]}  axb2 {[%clk 0:00:37]} 32. Rxb2 {[%clk 0:00:30]}  Ra1+ {[%clk 0:00:32]} 33. Kg2 {[%clk 0:00:30]}  R8a2 {[%clk 0:00:31]} 34. Rxa2 {[%clk 0:00:27]}  Rxa2 {[%clk 0:00:31]} 35. Qc6 {[%clk 0:00:19]}  Qf7 {[%clk 0:00:24]} 36. Qxb6 {[%clk 0:00:15]}  Qh5 {[%clk 0:00:24]} 37. Qb7 {[%clk 0:00:09]}  Qg4 {[%clk 0:00:19]} 38. Qc8+ {[%clk 0:00:07]}  Kh7 {[%clk 0:00:18]} 39. Qxe6 {[%clk 0:00:06]}  Qe2 {[%clk 0:00:12]} 40. Qxf5+ {[%clk 0:00:06]}  Kg8 {[%clk 0:00:12]} 41. Bxd4 {[%clk 0:00:05]}  Rd2 {[%clk 0:00:10]} 42. Qc8+ {[%clk 0:00:03]}  Kh7 {[%clk 0:00:10]} 43. Qf5+ {[%clk 0:00:03]}  Kg8 {[%clk 0:00:10]} 44. b6 {[%clk 0:00:04]}  Rd1 {[%clk 0:00:08]} 45. Qc8+ {[%clk 0:00:02]}  Kh7 {[%clk 0:00:08]} 46. Qf5+ {[%clk 0:00:03]}  Kg8 {[%clk 0:00:09]} 47. b7 {[%clk 0:00:03]}  Qf1+ {[%clk 0:00:09]} 48. Kf3 {[%clk 0:00:02]}  Qh1+ {[%clk 0:00:09]} 49. Kf4 {[%clk 0:00:02]}  Qxb7 {[%clk 0:00:09]} 50. Qe4 {[%clk 0:00:01]}  Qf7+ {[%clk 0:00:09]} 0-1


[Site "https://www.chess.com"]

[Event "Titled Tuesday Blitz March 15 Early 2022"]
[White "Nagy, Gabor"]
[Black "Pranav Anand"]
[WhiteFideId "737119"]
[BlackFideId "46626786"]
[WhiteElo "2534"]
[BlackElo "2259"]
[Result "1-0"]
[Round "11"]
[TimeControl "180+1"]
[Date "2022.03.15"]
[WhiteClock "0:01:15"]
[BlackClock "0:00:46"]

1. d4 {[%clk 0:03:00]}  b6 {[%clk 0:03:00]} 2. e4 {[%clk 0:02:59]}  Bb7 {[%clk 0:03:01]} 3. Bd3 {[%clk 0:03:00]}  e6 {[%clk 0:03:02]} 4. Nf3 {[%clk 0:02:58]}  d5 {[%clk 0:03:02]} 5. exd5 {[%clk 0:02:58]}  exd5 {[%clk 0:03:03]} 6. O-O {[%clk 0:02:58]}  Be7 {[%clk 0:03:03]} 7. Re1 {[%clk 0:02:55]}  Nf6 {[%clk 0:03:03]} 8. Bg5 {[%clk 0:02:55]}  O-O {[%clk 0:03:02]} 9. Nbd2 {[%clk 0:02:56]}  h6 {[%clk 0:03:02]} 10. Bh4 {[%clk 0:02:56]}  Nbd7 {[%clk 0:03:02]} 11. c3 {[%clk 0:02:55]}  c5 {[%clk 0:03:02]} 12. Bf5 {[%clk 0:02:54]}  Re8 {[%clk 0:02:59]} 13. Qa4 {[%clk 0:02:53]}  a6 {[%clk 0:02:48]} 14. Rad1 {[%clk 0:02:50]}  Nf8 {[%clk 0:02:38]} 15. dxc5 {[%clk 0:02:45]}  bxc5 {[%clk 0:02:37]} 16. Nb3 {[%clk 0:02:43]}  g6 {[%clk 0:02:31]} 17. Bb1 {[%clk 0:02:40]}  Qd7 {[%clk 0:02:22]} 18. Qxd7 {[%clk 0:02:28]}  N8xd7 {[%clk 0:02:23]} 19. Na5 {[%clk 0:02:28]}  Bc8 {[%clk 0:02:13]} 20. Nc6 {[%clk 0:02:26]}  Bd6 {[%clk 0:01:59]} 21. Rxe8+ {[%clk 0:02:24]}  Nxe8 {[%clk 0:02:00]} 22. Bg3 {[%clk 0:02:15]}  Bb7 {[%clk 0:01:51]} 23. Na5 {[%clk 0:02:12]}  Bxg3 {[%clk 0:01:47]} 24. hxg3 {[%clk 0:02:12]}  Rb8 {[%clk 0:01:47]} 25. Nxb7 {[%clk 0:02:01]}  Rxb7 {[%clk 0:01:48]} 26. Rxd5 {[%clk 0:02:01]}  Rxb2 {[%clk 0:01:48]} 27. Rxd7 {[%clk 0:01:49]}  Rxb1+ {[%clk 0:01:48]} 28. Kh2 {[%clk 0:01:50]}  Rb2 {[%clk 0:01:49]} 29. Kg1 {[%clk 0:01:37]}  Rb1+ {[%clk 0:01:48]} 30. Kh2 {[%clk 0:01:36]}  Nf6 {[%clk 0:01:48]} 31. Rd8+ {[%clk 0:01:35]}  Kg7 {[%clk 0:01:48]} 32. Ne5 {[%clk 0:01:35]}  Rb2 {[%clk 0:01:49]} 33. f4 {[%clk 0:01:34]}  Rxa2 {[%clk 0:01:48]} 34. Rc8 {[%clk 0:01:35]}  Ne4 {[%clk 0:01:46]} 35. Rc7 {[%clk 0:01:33]}  Kf6 {[%clk 0:01:26]} 36. Rxf7+ {[%clk 0:01:28]}  Ke6 {[%clk 0:01:27]} 37. Rg7 {[%clk 0:01:27]}  a5 {[%clk 0:01:26]} 38. Rxg6+ {[%clk 0:01:26]}  Kd5 {[%clk 0:01:26]} 39. c4+ {[%clk 0:01:23]}  Kd4 {[%clk 0:01:27]} 40. Rxh6 {[%clk 0:01:23]}  a4 {[%clk 0:01:27]} 41. Ra6 {[%clk 0:01:24]}  a3 {[%clk 0:01:25]} 42. g4 {[%clk 0:01:23]}  Ra1 {[%clk 0:01:24]} 43. g5 {[%clk 0:01:23]}  a2 {[%clk 0:01:24]} 44. g6 {[%clk 0:01:23]}  Nf2 {[%clk 0:00:45]} 45. g7 {[%clk 0:01:16]}  Rh1+ {[%clk 0:00:45]} 46. Kg3 {[%clk 0:01:16]}  Ne4+ {[%clk 0:00:46]} 47. Kg4 {[%clk 0:01:17]}  Nf6+ {[%clk 0:00:47]} 48. Kf5 {[%clk 0:01:17]}  Ng8 {[%clk 0:00:46]} 49. Rxa2 {[%clk 0:01:15]} 1-0


[Site "https://www.chess.com"]

[Event "Titled Tuesday Blitz March 15 Early 2022"]
[White "Odegov, Artem"]
[Black "Santos Ruiz, Miguel"]
[WhiteFideId "34183644"]
[BlackFideId "22291482"]
[WhiteElo "2286"]
[BlackElo "2486"]
[Result "0-1"]
[Round "11"]
[TimeControl "180+1"]
[Date "2022.03.15"]
[WhiteClock "0:00:02"]
[BlackClock "0:00:55"]

1. d4 {[%clk 0:02:56]}  Nf6 {[%clk 0:02:59]} 2. c4 {[%clk 0:02:56]}  e6 {[%clk 0:02:58]} 3. Nf3 {[%clk 0:02:56]}  c5 {[%clk 0:02:56]} 4. d5 {[%clk 0:02:56]}  exd5 {[%clk 0:02:56]} 5. cxd5 {[%clk 0:02:57]}  g6 {[%clk 0:02:57]} 6. Nc3 {[%clk 0:02:57]}  Bg7 {[%clk 0:02:57]} 7. Nd2 {[%clk 0:02:57]}  O-O {[%clk 0:02:57]} 8. Nc4 {[%clk 0:02:58]}  d6 {[%clk 0:02:39]} 9. Bf4 {[%clk 0:02:57]}  Ne8 {[%clk 0:02:36]} 10. Qd2 {[%clk 0:02:56]}  Qe7 {[%clk 0:02:22]} 11. Nb5 {[%clk 0:02:49]}  g5 {[%clk 0:02:05]} 12. Bxg5 {[%clk 0:02:12]}  Qd7 {[%clk 0:02:00]} 13. Nc3 {[%clk 0:01:54]}  b5 {[%clk 0:02:00]} 14. Ne3 {[%clk 0:01:50]}  b4 {[%clk 0:01:59]} 15. Ne4 {[%clk 0:01:49]}  f5 {[%clk 0:01:59]} 16. Ng3 {[%clk 0:01:01]}  f4 {[%clk 0:01:59]} 17. Nc4 {[%clk 0:01:02]}  fxg3 {[%clk 0:01:54]} 18. hxg3 {[%clk 0:01:02]}  Qf5 {[%clk 0:01:44]} 19. Bf4 {[%clk 0:00:53]}  Ba6 {[%clk 0:01:37]} 20. e3 {[%clk 0:00:51]}  Qf6 {[%clk 0:01:37]} 21. Rb1 {[%clk 0:00:36]}  Nd7 {[%clk 0:01:36]} 22. Nxd6 {[%clk 0:00:21]}  Bxf1 {[%clk 0:01:21]} 23. Nxe8 {[%clk 0:00:15]}  Qg6 {[%clk 0:01:21]} 24. Rc1 {[%clk 0:00:05]}  Bxg2 {[%clk 0:01:10]} 25. Nxg7 {[%clk 0:00:02]}  Bxh1 {[%clk 0:01:07]} 26. Ne6 {[%clk 0:00:03]}  Rf5 {[%clk 0:01:03]} 27. d6 {[%clk 0:00:02]}  Qxe6 {[%clk 0:00:55]} 0-1


[Site "https://www.chess.com"]

[Event "Titled Tuesday Blitz March 15 Early 2022"]
[White "Omariev, Maksim"]
[Black "Goryachkina, Aleksandra"]
[WhiteFideId "4193423"]
[BlackFideId "4147103"]
[WhiteElo "2464"]
[BlackElo "2426"]
[Result "0-1"]
[Round "11"]
[TimeControl "180+1"]
[Date "2022.03.15"]
[WhiteClock "0:00:01"]
[BlackClock "0:00:09"]

1. g4 {[%clk 0:02:50]}  d5 {[%clk 0:02:56]} 2. Bg2 {[%clk 0:02:50]}  c6 {[%clk 0:02:50]} 3. h3 {[%clk 0:02:42]}  e5 {[%clk 0:02:47]} 4. d4 {[%clk 0:02:42]}  e4 {[%clk 0:02:39]} 5. c4 {[%clk 0:02:41]}  Bb4+ {[%clk 0:02:34]} 6. Nc3 {[%clk 0:02:41]}  Ne7 {[%clk 0:02:33]} 7. Qb3 {[%clk 0:02:37]}  a5 {[%clk 0:02:30]} 8. a3 {[%clk 0:02:36]}  Bxc3+ {[%clk 0:02:29]} 9. Qxc3 {[%clk 0:02:37]}  O-O {[%clk 0:02:29]} 10. Bg5 {[%clk 0:02:21]}  Be6 {[%clk 0:02:27]} 11. e3 {[%clk 0:02:16]}  f6 {[%clk 0:02:25]} 12. Bf4 {[%clk 0:02:12]}  Nd7 {[%clk 0:02:07]} 13. c5 {[%clk 0:02:05]}  Rf7 {[%clk 0:02:02]} 14. Ne2 {[%clk 0:02:03]}  Ng6 {[%clk 0:02:00]} 15. Bg3 {[%clk 0:02:03]}  f5 {[%clk 0:02:00]} 16. gxf5 {[%clk 0:01:48]}  Bxf5 {[%clk 0:02:00]} 17. b4 {[%clk 0:01:35]}  Nf6 {[%clk 0:01:39]} 18. Kd2 {[%clk 0:01:12]}  Nh5 {[%clk 0:01:20]} 19. bxa5 {[%clk 0:01:01]}  Rxa5 {[%clk 0:01:18]} 20. Rhb1 {[%clk 0:00:57]}  Ra7 {[%clk 0:01:12]} 21. a4 {[%clk 0:00:16]}  Nh4 {[%clk 0:01:11]} 22. Bf1 {[%clk 0:00:17]}  Nf3+ {[%clk 0:01:06]} 23. Kc2 {[%clk 0:00:17]}  Qd7 {[%clk 0:01:06]} 24. h4 {[%clk 0:00:16]}  Bh3 {[%clk 0:01:02]} 25. a5 {[%clk 0:00:14]}  Bxf1 {[%clk 0:00:57]} 26. Rxf1 {[%clk 0:00:15]}  Ra8 {[%clk 0:00:49]} 27. Rh1 {[%clk 0:00:14]}  Qg4 {[%clk 0:00:42]} 28. Bd6 {[%clk 0:00:04]}  Nxh4 {[%clk 0:00:38]} 29. Nf4 {[%clk 0:00:02]}  Nxf4 {[%clk 0:00:37]} 30. Bxf4 {[%clk 0:00:03]}  Ng6 {[%clk 0:00:36]} 31. Rag1 {[%clk 0:00:02]}  Qe6 {[%clk 0:00:35]} 32. Bg3 {[%clk 0:00:03]}  Raf8 {[%clk 0:00:31]} 33. Rh2 {[%clk 0:00:02]}  Rf5 {[%clk 0:00:29]} 34. Rgh1 {[%clk 0:00:02]}  h6 {[%clk 0:00:28]} 35. Qb4 {[%clk 0:00:03]}  Qd7 {[%clk 0:00:25]} 36. Qb6 {[%clk 0:00:03]}  Rf3 {[%clk 0:00:24]} 37. Kc3 {[%clk 0:00:03]}  Ne7 {[%clk 0:00:24]} 38. a6 {[%clk 0:00:03]}  bxa6 {[%clk 0:00:23]} 39. Ra1 {[%clk 0:00:04]}  Nf5 {[%clk 0:00:18]} 40. Be5 {[%clk 0:00:04]}  Nxe3 {[%clk 0:00:13]} 41. fxe3 {[%clk 0:00:04]}  Rxe3+ {[%clk 0:00:14]} 42. Kb4 {[%clk 0:00:04]}  Rff3 {[%clk 0:00:13]} 43. Rb2 {[%clk 0:00:04]}  Qh3 {[%clk 0:00:10]} 44. Qb8+ {[%clk 0:00:02]}  Kh7 {[%clk 0:00:10]} 45. Ka4 {[%clk 0:00:01]}  Ra3+ {[%clk 0:00:10]} 46. Kb4 {[%clk 0:00:01]}  Rfb3+ {[%clk 0:00:09]} 0-1


[Site "https://www.chess.com"]

[Event "Titled Tuesday Blitz March 15 Early 2022"]
[White "Perez Gormaz, Matias"]
[Black "Migot, Tangi"]
[WhiteFideId "3406342"]
[BlackFideId "662445"]
[WhiteElo "2327"]
[BlackElo "2510"]
[Result "1-0"]
[Round "11"]
[TimeControl "180+1"]
[Date "2022.03.15"]
[WhiteClock "0:01:20"]
[BlackClock "0:01:27"]

1. e4 {[%clk 0:02:59]}  e5 {[%clk 0:03:00]} 2. Nf3 {[%clk 0:02:58]}  d6 {[%clk 0:03:01]} 3. d4 {[%clk 0:02:58]}  exd4 {[%clk 0:03:01]} 4. Nxd4 {[%clk 0:02:57]}  Nf6 {[%clk 0:03:02]} 5. Nc3 {[%clk 0:02:57]}  Be7 {[%clk 0:03:03]} 6. g3 {[%clk 0:02:57]}  O-O {[%clk 0:03:02]} 7. Bg2 {[%clk 0:02:57]}  Nc6 {[%clk 0:03:02]} 8. Nxc6 {[%clk 0:02:55]}  bxc6 {[%clk 0:03:03]} 9. O-O {[%clk 0:02:55]}  Rb8 {[%clk 0:03:02]} 10. b3 {[%clk 0:02:53]}  c5 {[%clk 0:03:02]} 11. Bb2 {[%clk 0:02:53]}  Be6 {[%clk 0:03:02]} 12. h3 {[%clk 0:02:51]}  Qc8 {[%clk 0:03:02]} 13. Kh2 {[%clk 0:02:49]}  Nd7 {[%clk 0:02:49]} 14. f4 {[%clk 0:02:41]}  f5 {[%clk 0:02:48]} 15. Re1 {[%clk 0:02:38]}  Bf6 {[%clk 0:02:44]} 16. Qd3 {[%clk 0:02:20]}  c4 {[%clk 0:02:35]} 17. Qd2 {[%clk 0:02:18]}  fxe4 {[%clk 0:02:26]} 18. Bxe4 {[%clk 0:02:11]}  Nc5 {[%clk 0:02:26]} 19. Bg2 {[%clk 0:02:04]}  a5 {[%clk 0:02:17]} 20. Ba3 {[%clk 0:01:56]}  Na6 {[%clk 0:02:11]} 21. Rxe6 {[%clk 0:01:55]}  Bxc3 {[%clk 0:02:06]} 22. Qxc3 {[%clk 0:01:46]}  Qxe6 {[%clk 0:02:06]} 23. Re1 {[%clk 0:01:47]}  Qd7 {[%clk 0:01:59]} 24. Qxc4+ {[%clk 0:01:46]}  Kh8 {[%clk 0:01:58]} 25. Qxa6 {[%clk 0:01:46]}  a4 {[%clk 0:01:50]} 26. Bb2 {[%clk 0:01:39]}  axb3 {[%clk 0:01:49]} 27. axb3 {[%clk 0:01:37]}  d5 {[%clk 0:01:37]} 28. Qe6 {[%clk 0:01:27]}  Qxe6 {[%clk 0:01:33]} 29. Rxe6 {[%clk 0:01:28]}  Rbe8 {[%clk 0:01:33]} 30. Bxd5 {[%clk 0:01:24]}  Rxe6 {[%clk 0:01:27]} 31. Bxe6 {[%clk 0:01:25]}  Re8 {[%clk 0:01:26]} 32. f5 {[%clk 0:01:25]}  Rd8 {[%clk 0:01:27]} 33. f6 {[%clk 0:01:20]} 1-0


[Site "https://www.chess.com"]

[Event "Titled Tuesday Blitz March 15 Early 2022"]
[White "Petersson, Kjell"]
[Black "De Souza, Cristiano Gomes"]
[WhiteFideId "1705148"]
[BlackFideId "2151758"]
[WhiteElo "2009"]
[BlackElo "2068"]
[Result "0-1"]
[Round "11"]
[TimeControl "180+1"]
[Date "2022.03.15"]
[WhiteClock "0:00:09"]
[BlackClock "0:01:03"]

1. d4 {[%clk 0:03:00]}  Nf6 {[%clk 0:02:57]} 2. Bf4 {[%clk 0:03:00]}  d6 {[%clk 0:02:56]} 3. Nc3 {[%clk 0:02:59]}  c6 {[%clk 0:02:56]} 4. e4 {[%clk 0:02:58]}  b5 {[%clk 0:02:54]} 5. Bd3 {[%clk 0:02:54]}  b4 {[%clk 0:02:53]} 6. Nce2 {[%clk 0:02:53]}  a5 {[%clk 0:02:52]} 7. Nf3 {[%clk 0:02:51]}  Ba6 {[%clk 0:02:52]} 8. O-O {[%clk 0:02:47]}  g6 {[%clk 0:02:44]} 9. Qd2 {[%clk 0:02:32]}  Bg7 {[%clk 0:02:43]} 10. Bh6 {[%clk 0:02:30]}  O-O {[%clk 0:02:42]} 11. h4 {[%clk 0:02:24]}  Ng4 {[%clk 0:02:41]} 12. Bxg7 {[%clk 0:02:20]}  Kxg7 {[%clk 0:02:40]} 13. h5 {[%clk 0:02:20]}  e5 {[%clk 0:02:39]} 14. Ng3 {[%clk 0:02:06]}  Bxd3 {[%clk 0:02:36]} 15. Qxd3 {[%clk 0:01:58]}  Qf6 {[%clk 0:02:35]} 16. Rad1 {[%clk 0:01:40]}  Na6 {[%clk 0:02:29]} 17. hxg6 {[%clk 0:01:25]}  hxg6 {[%clk 0:02:28]} 18. Qd2 {[%clk 0:00:58]}  Nc7 {[%clk 0:02:21]} 19. dxe5 {[%clk 0:00:56]}  dxe5 {[%clk 0:02:20]} 20. Qd7 {[%clk 0:00:53]}  Ne6 {[%clk 0:02:17]} 21. Qxc6 {[%clk 0:00:44]}  Rac8 {[%clk 0:02:15]} 22. Qb6 {[%clk 0:00:40]}  Rxc2 {[%clk 0:02:14]} 23. Rb1 {[%clk 0:00:37]}  Rfc8 {[%clk 0:01:39]} 24. Qxa5 {[%clk 0:00:36]}  Nf4 {[%clk 0:01:27]} 25. Qxb4 {[%clk 0:00:35]}  Nxg2 {[%clk 0:01:21]} 26. Kxg2 {[%clk 0:00:34]}  Ne3+ {[%clk 0:01:20]} 27. Kg1 {[%clk 0:00:26]}  Qxf3 {[%clk 0:01:17]} 28. Nf5+ {[%clk 0:00:14]}  Nxf5 {[%clk 0:01:15]} 29. exf5 {[%clk 0:00:13]}  R8c4 {[%clk 0:01:12]} 30. Qxc4 {[%clk 0:00:11]}  Rxc4 {[%clk 0:01:10]} 31. Rfc1 {[%clk 0:00:08]}  Rg4+ {[%clk 0:01:09]} 32. Kf1 {[%clk 0:00:09]}  Qd3+ {[%clk 0:01:03]} 33. Ke1 {[%clk 0:00:09]}  Re4# {[%clk 0:01:03]} 0-1


[Site "https://www.chess.com"]